[Event "Indian Rapid Championship 2023-24"]
[Site "Nashik"]
[Date "2024.03.06"]
[Round "11.8"]
[White "Prraneeth Vuppala"]
[Black "Mrudul Dehankar"]
[Result "1/2-1/2"]
[ECO "E11"]
[WhiteElo "2506"]
[BlackElo "1981"]
[Annotator "TA"]
[PlyCount "171"]
[EventDate "2024.03.02"]
[EventType "swiss"]
[EventCountry "IND"]
[SourceTitle "playchess.com"]
[Source "ChessBase"]
[SourceQuality "1"]
[TimeControl "900+10"]

{[%evp 9,171,5,41,18,28,24,29,37,31,43,42,17,28,-78,-81,-70,-72,-69,-58,-65,-57,-94,-10,-23,-25,-28,-24,-54,-43,-120,-120,-111,-118,-111,-108,-144,-141,-152,-147,-148,-147,-137,-135,-156,-163,-178,-177,-232,-238,-250,-213,-206,-179,-190,-190,-205,-179,-261,-255,-241,-140,-229,0,-226,-233,-277,-245,-270,-263,-256,-237,-233,0,-200,-205,-168,-26,-37,-35,-158,-164,-157,0,-10,-10,-10,-10,-46,0,-10,0,-12,0,-11,0,-7,0,0,0,0,0,0,0,0,0,0,0,0,0,-92,0,-37,-36,-37,0,0,0,0,0,0,0,0,0,0,0,0,0,0,0,0,0,0,0,-29982,0,0,0,0,0,0,0,0,0,0,0,0,0,0,0,0,0,0,0,0,0,0,0,0,0,0,0,0,0,0]} 1. d4 {[%emt 0:00:09]} Nf6 {[%emt 0:00:02]} 2. c4 {[%emt 0:00:01]} e6 {[%emt 0:00:01]} 3. Nf3 {[%emt 0:00:06]} Bb4+ {[%emt 0:00:05]} 4. Bd2 {[%emt 0:00:02]} Qe7 {[%emt 0:00:15]} 5. e3 {[%emt 0:00:05]} Nc6 {[%emt 0:01:28]} 6. Bd3 {[%emt 0:00:31]} Bxd2+ {[%emt 0:00:51]} 7. Qxd2 {[%emt 0:00:02]} d6 {[%emt 0:00:03]} 8. Nc3 {[%emt 0:01:01] White has an edge.} e5 {[%emt 0:00:15] Threatens to win with ...e4.} 9. Nd5 {[%emt 0:00:04]} Qd8 {[%emt 0:04:05]} 10. O-O-O {[%emt 0:02:48]} O-O {[%emt 0:01:15]} 11. Ng5 {[%emt 0:00:53]} (11. dxe5 $11 Nxe5 12. Nxe5 dxe5 13. Nc3) 11... Nxd5 $1 $17 {[%emt 0:01:16]} 12. cxd5 {[%emt 0:00:05]} (12. Nxh7 Ndb4 13. Nxf8 Nxd3+ (13... Kxf8 14. Bb1 $15) 14. Qxd3 Kxf8 $15 (14... Qxf8 $2 15. h4 $19)) 12... Qxg5 {[%emt 0:00:07]} 13. dxc6 {[%emt 0:00:03]} bxc6 {[%emt 0:00:03]} 14. h4 {[%emt 0:00:10]} Qf6 {[%emt 0:00:44]} 15. Qc2 {[%emt 0:00:21][%csl LRc6,LRh7]} h6 {[%emt 0:00:57]} ({Black should try} 15... exd4 $17 16. Bxh7+ Kh8) 16. Qxc6 $11 {[%emt 0:01:31]} Rb8 {[%emt 0:02:35]} 17. Qe4 {[%emt 0:00:04]} g6 $40 {[%emt 0:02:24][%mdl 128] Black mounts an attack.} (17... Qxf2 18. Qh7#) 18. dxe5 {[%emt 0:00:05]} dxe5 {[%emt 0:00:16][%cal Oc8f5] White must now prevent ...Bf5!} (18... Qxf2 19. Rd2 Qg3 20. exd6 $11) 19. Bc2 {[%emt 0:00:48]} (19. Qf3 $15 Qb6 20. Rd2) 19... Bf5 {[%emt 0:00:23]} 20. Qa4 {[%emt 0:00:08]} Bxc2 {[%emt 0:00:23]} 21. Qxc2 {[%emt 0:00:02][%cal Oc1b1]} Rb6 $1 {[%emt 0:00:03]} 22. Kb1 {[%emt 0:00:51][%cal Od1d2]} (22. Qxc7 $2 {perishes.} Rc6+ $19 (22... Qxf2 23. Qxe5 Qxg2 24. Kb1 $17) (22... Qxf2 23. Qxe5 Qxg2 24. Rh2 $17)) 22... Rfb8 {[%emt 0:00:02]} 23. Rd2 {[%emt 0:00:21]} Rxb2+ {[%emt 0:00:26]} 24. Qxb2 {[%emt 0:00:02]} Qf5+ $1 {[%emt 0:00:19]} ({Don't play} 24... Rxb2+ 25. Kxb2 Qe7 26. Rc2) 25. Ka1 {[%emt 0:00:02]} Rxb2 {[%emt 0:00:02]} 26. Rxb2 $17 {[%emt 0:00:01][%mdl 4096] Endgame. KQ-KRR} Qe4 {[%emt 0:00:06]} 27. f3 {[%emt 0:00:51]} Qxe3 {[%emt 0:00:05]} 28. h5 {[%emt 0:00:02]} (28. Rc2 $142) 28... g5 $19 {[%emt 0:00:12]} 29. Rd1 {[%emt 0:00:11]} Qc3 {[%emt 0:00:09]} 30. Kb1 {[%emt 0:00:05]} Kg7 {[%emt 0:00:40][%cal Og5g4]} 31. Rc2 {[%emt 0:00:18]} Qb4+ {[%emt 0:00:02]} 32. Ka1 {[%emt 0:00:02]} c5 {[%emt 0:00:11]} 33. Rdc1 {[%emt 0:00:46]} (33. Rd5 $142) 33... Qd4+ {[%emt 0:00:09]} 34. Kb1 {[%emt 0:00:02][%cal Oc2c4]} Qd3 {[%emt 0:00:24]} ({Worse is} 34... g4 35. Rxc5 gxf3 36. gxf3 $11) (34... e4 $19 {...exf3 would now be deadly.} 35. fxe4 Qxe4) 35. Kb2 {[%emt 0:00:04]} (35. Re1 $17) 35... Qd4+ $2 {[%emt 0:00:08]} (35... g4 $1 $19 36. Rxc5 gxf3) 36. Rc3 $2 {[%emt 0:00:01]} (36. Kb1 $11 {and White is okay.}) 36... a5 {[%emt 0:00:12]} 37. a3 {[%emt 0:00:07]} Kf6 {[%emt 0:00:25]} 38. Ka2 {[%emt 0:00:09][%cal Oc3c4]} Qd5+ {[%emt 0:00:06]} 39. Kb1 {[%emt 0:00:02]} Qb7+ {[%emt 0:00:12]} 40. Ka1 {[%emt 0:00:06]} Qd5 {[%emt 0:00:12] Against Rc4} (40... g4 $19 {Strongly threatening ...Qd5.} 41. Rxc5 gxf3 42. Rc6+ Kg5 43. gxf3 Qd7 (43... Kxh5 $2 44. R6c5 $19)) 41. Rxc5 $2 {[%emt 0:00:04]} (41. Kb1 $1 $11 {and White stays safe.} g4 42. fxg4) 41... Qd4+ $1 {[%emt 0:00:01]} 42. Ka2 {[%emt 0:00:07][%cal Oc5c4] [#]} Kg7 {[%emt 0:00:10]} (42... g4 $1 $19 {aiming for ...gxf3.} 43. fxg4 Qxg4 (43... Kg5 $2 44. R1c4 $19)) 43. R1c2 {[%emt 0:00:14]} Qd3 {[%emt 0:00:22][%cal Og5g4]} 44. R5c3 {[%emt 0:00:29]} (44. R2c3 $15 Qd7 45. Rxa5) 44... Qd5+ $17 {[%emt 0:00:02]} 45. Rc4 {[%emt 0:00:02]} Qb5 {[%emt 0:00:16]} (45... g4 $1 $17 {[%cal Rg4f3]} 46. R2c3 e4 47. fxe4 Qxh5) 46. a4 {[%emt 0:00:33]} Qd5 {[%emt 0:00:03][%cal Og5g4]} 47. Kb2 {[%emt 0:00:03]} Qd3 {[%emt 0:00:12]} 48. Re4 {[%emt 0:00:07][%cal Oc2c3]} Qd5 {[%emt 0:00:14]} (48... f5 $15 {is superior.} 49. Rec4 e4) 49. Rce2 {[%emt 0:00:06]} Qb7+ {[%emt 0:00:11]} 50. Kc2 {[%emt 0:00:10]} Qd5 {[%emt 0:00:07]} 51. Kc3 {[%emt 0:00:13]} Qc5+ {[%emt 0:00:15]} 52. Kd2 {[%emt 0:00:05]} Kf6 {[%emt 0:00:06]} 53. R2e3 {[%emt 0:00:19]} Kg7 {[%emt 0:00:10]} 54. Ke1 {[%emt 0:00:16]} Qc2 {[%emt 0:00:14]} 55. Re2 {[%emt 0:00:04]} Qc3+ {[%emt 0:00:07]} 56. Kf2 {[%emt 0:00:04]} Qc5+ {[%emt 0:00:01]} 57. Kg3 {[%emt 0:00:03]} Kf6 {[%emt 0:00:07]} 58. Kh2 {[%emt 0:00:24]} Ke6 {[%emt 0:00:15]} 59. g3 {[%emt 0:00:27] [#]} (59. g4 $11 {remains equal.}) 59... f6 {[%emt 0:00:16]} (59... f5 $1 $17 {[%cal Rf5e4]} 60. R4e3 e4) 60. f4 {[%emt 0:00:06]} gxf4 {[%emt 0:00:10]} 61. gxf4 {[%emt 0:00:02]} Qc3 {[%emt 0:00:12] Hoping for ...Qf3.} 62. fxe5 {[%emt 0:00:07]} fxe5 {[%emt 0:00:08]} 63. Kg2 {[%emt 0:00:19]} Kf5 {[%emt 0:00:15]} 64. R4e3 {[%emt 0:00:47]} Qc6+ {[%emt 0:00:01]} 65. Kh2 {[%emt 0:00:23]} e4 {[%emt 0:00:14]} 66. Rxe4 {[%emt 0:03:40]} Qxe4 {[%emt 0:00:07]} 67. Rxe4 {[%emt 0:00:01]} Kxe4 $11 {[%emt 0:00:01] KPP-KPP} 68. Kg3 {[%emt 0:00:02]} Kf5 {[%emt 0:00:08]} 69. Kf3 {[%emt 0:00:01]} Kg5 {[%emt 0:00:02]} 70. Ke4 {[%emt 0:00:01]} Kxh5 {[%emt 0:00:06] KPP-KP} 71. Kf5 {[%emt 0:00:03]} Kh4 {[%emt 0:00:12]} 72. Kf4 $1 {[%emt 0:00:01] The position is equal.} h5 {[%emt 0:00:19]} 73. Kf3 {[%emt 0:00:01]} Kh3 {[%emt 0:00:19]} (73... Kg5 $5 74. Kg3 $8 h4+ 75. Kg2 Kg4 $11) 74. Kf4 {[%emt 0:00:03]} Kh4 {[%emt 0:00:01]} (74... h4 $5 75. Kf3 $8 Kh2 $11) 75. Kf3 {[%emt 0:00:01]} Kh3 {[%emt 0:00:01]} (75... Kg5 $5 76. Kg3 $8 Kf5 $11) 76. Kf4 {[%emt 0:00:01]} Kh4 {[%emt 0:00:27]} (76... Kg2 $5 77. Kg5 $8 Kf2 $11) 77. Kf3 {[%emt 0:00:02]} Kg5 {[%emt 0:00:11]} (77... Kh3 $5) 78. Kg3 {[%emt 0:00:02]} Kf5 {[%emt 0:00:01]} 79. Kh4 {[%emt 0:00:00]} Ke4 {[%emt 0:00:01]} 80. Kxh5 {[%emt 0:00:01] KP-KP} Kd4 {[%emt 0:00:02]} 81. Kg4 {[%emt 0:00:02]} Kc4 {[%emt 0:00:04]} 82. Kf3 {[%emt 0:00:01]} Kb3 {[%emt 0:00:20]} 83. Ke2 {[%emt 0:00:01]} Kxa4 {[%emt 0:00:01]} 84. Kd2 {[%emt 0:00:01][%cal Be2d2,Bd2c1,Bc1c2][%mdl 32]} Kb3 {[%emt 0:00:08] ( -> ...Kb2)} 85. Kc1 {[%emt 0:00:02]} Ka2 {[%emt 0:00:16]} (85... a4 $5) 86. Kc2 {[%emt 0:00:01] Weighted Error Value: White=0.29 (precise) /Black=0.27 (precise) .  Loses game:     	White=2     	---        Missed win:     	---       	Black=3      Mistake:       	White=7     	Black=6      Inaccurate:     	White=4     	Black=1      OK:         	White=22    	Black=18     Best:        	White=13    	Black=7      Strong:       	White=1     	Black=3} 1/2-1/2

[Event "Indian Rapid Championship 2023-24"]
[Site "Nashik"]
[Date "2024.03.06"]
[Round "11.9"]
[White "Nithin Babu"]
[Black "Nitin, S.."]
[Result "1-0"]
[ECO "B81"]
[WhiteElo "2346"]
[BlackElo "2338"]
[Annotator "TA"]
[PlyCount "53"]
[EventDate "2024.03.02"]
[EventType "swiss"]
[EventCountry "IND"]
[SourceTitle "playchess.com"]
[Source "ChessBase"]
[SourceQuality "1"]
[TimeControl "900+10"]

{[%evp 16,53,46,41,90,72,74,112,108,96,97,89,106,84,92,88,93,77,87,75,72,59,103,103,135,75,238,241,230,100,83,56,113,119,133,127,163,163,652,659]} 1. e4 {[%emt 0:00:05]} c5 {[%emt 0:00:12]} 2. Nf3 {[%emt 0:00:02]} e6 {[%emt 0:00:01]} 3. d4 {[%emt 0:00:01]} cxd4 {[%emt 0:00:02]} 4. Nxd4 {[%emt 0:00:01]} Nf6 {[%emt 0:00:01]} 5. Nc3 {[%emt 0:00:02]} d6 {[%emt 0:00:01]} 6. g4 {[%emt 0:00:07]} h6 {[%emt 0:00:05]} 7. Rg1 {[%emt 0:00:05]} Nc6 {[%emt 0:00:13]} 8. Be3 {[%emt 0:00:07]} a6 {[%emt 0:01:44]} 9. Be2 {[%emt 0:00:27]} Bd7 {[%emt 0:02:07]} (9... e5 $14 10. Nb3 Be6) 10. h4 $16 {[%emt 0:00:31] White is more active.} Nxd4 {[%emt 0:00:04]} 11. Qxd4 {[%emt 0:00:11]} e5 {[%emt 0:00:37] White is better.} 12. Qd2 {[%emt 0:01:22]} Bc6 {[%emt 0:00:06]} 13. Bf3 {[%emt 0:00:01]} Nd7 {[%emt 0:03:20]} 14. g5 {[%emt 0:00:46]} hxg5 {[%emt 0:00:20]} 15. hxg5 {[%emt 0:00:03]} Qa5 {[%emt 0:00:25]} 16. O-O-O {[%emt 0:00:39]} O-O-O {[%emt 0:00:15]} 17. Kb1 {[%emt 0:00:31]} Kb8 {[%emt 0:00:03]} 18. Be2 {[%emt 0:01:38]} Nc5 {[%emt 0:00:25]} 19. Bc4 {[%emt 0:00:40]} Rd7 {[%emt 0:01:00]} 20. Bd5 {[%emt 0:01:10]} (20. Qe2 $142) 20... Bxd5 $2 {[%emt 0:00:13]} (20... Na4 $16) 21. Qxd5 $18 {[%emt 0:00:03] [#] Bxc5 would now be deadly.} ({Worse is} 21. Nxd5 Qxd2 22. Bxd2 Nxe4 $11) 21... Rc7 {[%emt 0:00:46]} 22. Bxc5 {[%emt 0:02:51]} (22. Rh1 $18 {has better winning chances.} Rxh1 23. Rxh1) 22... Qxc5 $16 {[%emt 0:00:39]} 23. Qxc5 {[%emt 0:00:20]} Rxc5 {[%emt 0:00:05]} ({Better is} 23... dxc5 $14 24. Nd5 Rd7) 24. Nd5 {[%emt 0:00:09]} Rh2 {[%emt 0:00:35]} 25. Rdf1 {[%emt 0:02:08]} Rc4 {[%emt 0:00:54] [#]} 26. Rh1 $1 {[%emt 0:00:43]} Rg2 {[%emt 0:01:18]} (26... Rxh1 27. Rxh1 Rc8 (27... Rxe4 $2 {perishes.} 28. c3 $18)) 27. Ne3 {[%emt 0:00:09][%csl LRc4,LRg2] Weighted Error Value: White=0.19 (very precise) /Black=0.55.  Loses game:     	---       	Black=1      Mistake:       	White=2     	Black=2      Inaccurate:     	White=1     	Black=2      OK:         	White=3     	Black=5      Best:        	White=3     	---        Strong:       	White=1     	---} 1-0

[Event "Indian Rapid Championship 2023-24"]
[Site "Nashik"]
[Date "2024.03.06"]
[Round "11.10"]
[White "Raahul V S"]
[Black "Sai Agni Jeevitesh, J."]
[Result "1-0"]
[ECO "A28"]
[WhiteElo "2314"]
[BlackElo "2285"]
[Annotator "ChessBase"]
[PlyCount "107"]
[EventDate "2024.03.02"]
[EventType "swiss"]
[EventCountry "IND"]
[SourceTitle "playchess.com"]
[Source "ChessBase"]
[SourceQuality "1"]
[TimeControl "900+10"]

1. c4 {[%emt 0:00:01]} e5 {[%emt 0:00:13]} 2. Nc3 {[%emt 0:00:02]} Nf6 {[%emt 0:00:02]} 3. Nf3 {[%emt 0:00:02]} Nc6 {[%emt 0:00:02]} 4. e3 {[%emt 0:00:01]} Be7 {[%emt 0:00:23]} 5. d4 {[%emt 0:00:09]} exd4 {[%emt 0:00:04]} 6. Nxd4 {[%emt 0:00:01]} O-O {[%emt 0:00:10]} 7. Be2 {[%emt 0:00:02]} d6 {[%emt 0:00:49]} 8. O-O {[%emt 0:00:03]} Bd7 {[%emt 0:00:04]} 9. b3 {[%emt 0:00:02]} Re8 {[%emt 0:00:02]} 10. Bb2 {[%emt 0:00:03]} Bf8 {[%emt 0:00:02]} 11. Nd5 {[%emt 0:00:32]} Nxd5 {[%emt 0:00:36]} 12. cxd5 {[%emt 0:00:02]} Nb4 {[%emt 0:00:22]} 13. Nf3 {[%emt 0:00:20]} a5 {[%emt 0:00:16]} 14. Qd2 {[%emt 0:00:10]} Bf5 {[%emt 0:00:57]} 15. a3 {[%emt 0:00:09]} Na6 {[%emt 0:00:01]} 16. Qxa5 {[%emt 0:00:04]} Nc5 {[%emt 0:00:14]} 17. Qc3 {[%emt 0:00:04]} Ne4 {[%emt 0:00:49]} 18. Qd4 {[%emt 0:00:40]} Nc5 {[%emt 0:00:03]} 19. Qc4 {[%emt 0:01:01]} Re4 {[%emt 0:01:11]} 20. Nd4 {[%emt 0:00:11]} Bg6 {[%emt 0:01:27]} 21. Bf3 {[%emt 0:00:43]} Rh4 {[%emt 0:00:44]} 22. Rfd1 {[%emt 0:00:26]} Qg5 {[%emt 0:00:28]} 23. g3 {[%emt 0:00:22]} Rh6 {[%emt 0:00:43]} 24. Ne2 {[%emt 0:00:39]} b5 {[%emt 0:00:39]} 25. Qxb5 {[%emt 0:00:33]} Be4 {[%emt 0:00:17]} 26. Bxe4 {[%emt 0:00:45]} Nxe4 {[%emt 0:00:01]} 27. Qc4 {[%emt 0:00:02]} Re8 {[%emt 0:00:20]} 28. Nf4 {[%emt 0:00:44]} Qf5 {[%emt 0:00:05]} 29. Qe2 {[%emt 0:01:02]} Be7 {[%emt 0:02:09]} 30. f3 {[%emt 0:00:25]} Ng5 {[%emt 0:00:40]} 31. g4 {[%emt 0:00:26]} Qd7 {[%emt 0:00:14]} 32. Nh5 {[%emt 0:00:34]} f5 {[%emt 0:01:08]} 33. Rf1 {[%emt 0:00:55]} g6 {[%emt 0:00:45]} 34. Nf4 {[%emt 0:01:28]} fxg4 {[%emt 0:00:10]} 35. fxg4 {[%emt 0:00:02]} Rh4 {[%emt 0:00:01]} 36. Kh1 {[%emt 0:00:11]} Rxg4 {[%emt 0:00:20]} 37. Ne6 {[%emt 0:00:12]} Re4 {[%emt 0:00:01]} 38. Qg2 {[%emt 0:00:27]} Rxe6 {[%emt 0:00:53]} 39. dxe6 {[%emt 0:00:02]} Qxe6 {[%emt 0:00:02]} 40. Rf4 {[%emt 0:00:11]} d5 {[%emt 0:00:12]} 41. Raf1 {[%emt 0:00:09]} Ne4 {[%emt 0:00:01]} 42. b4 {[%emt 0:01:03]} c5 {[%emt 0:00:11]} 43. bxc5 {[%emt 0:00:38]} Bxc5 {[%emt 0:00:01]} 44. R4f3 {[%emt 0:00:08]} Rb8 {[%emt 0:00:37]} 45. a4 {[%emt 0:00:09]} Qb6 {[%emt 0:00:26]} 46. Ba1 {[%emt 0:01:10]} Bxe3 {[%emt 0:00:21]} 47. Qe2 {[%emt 0:00:02]} Bd4 {[%emt 0:00:28]} 48. Qd3 {[%emt 0:00:09]} Bxa1 {[%emt 0:00:41]} 49. Qxd5+ {[%emt 0:00:01]} Kh8 {[%emt 0:00:18]} 50. Rxa1 {[%emt 0:00:02]} Re8 {[%emt 0:00:28]} 51. Raf1 {[%emt 0:00:08]} Qb4 {[%emt 0:00:13]} 52. Qd7 {[%emt 0:00:20]} Re7 {[%emt 0:01:11]} 53. Qd8+ {[%emt 0:00:02]} Kg7 {[%emt 0:00:04]} 54. Qf8# {[%emt 0:00:02]} 1-0